[Event "IV Estrellas 2022"]
[Site "La Palma"]
[Date "2022.08.09"]
[Round "5.8"]
[White "Amador Garcia, Ismael"]
[Black "Garcia Blanco, Omar"]
[Result "1/2-1/2"]
[ECO "B12"]
[WhiteElo "2128"]
[BlackElo "2352"]
[Annotator "RC"]
[PlyCount "152"]
[EventDate "2022.08.06"]
[EventType "swiss"]
[EventCountry "ESP"]
[SourceTitle "playchess.com"]
[Source "ChessBase"]
[SourceQuality "1"]
[TimeControl "5400+30"]

1. e4 {[%emt 0:03:39]} c6 {[%emt 0:00:12]} 2. d4 {[%emt 0:00:02]} d5 {[%emt 0:00:09]} 3. e5 {[%emt 0:00:03]} Bf5 {[%emt 0:00:13]} 4. c4 {[%emt 0:00:03]} e6 {[%emt 0:00:32]} 5. Nc3 {[%emt 0:00:39]} dxc4 {[%emt 0:03:34]} 6. Bxc4 {[%emt 0:04:19]} Nd7 {[%emt 0:00:13]} 7. Be3 {[%emt 0:09:53]} Ne7 {[%emt 0:04:21]} 8. h3 {[%emt 0:00:35]} Bg6 {[%emt 0:01:24]} 9. Nf3 {[%emt 0:00:24]} Nf5 {[%emt 0:00:15]} 10. O-O {[%emt 0:00:18]} Nxe3 {[%emt 0:06:56]} 11. fxe3 {[%emt 0:00:10]} Be7 {[%emt 0:00:12]} 12. Ne2 {[%emt 0:12:47]} Nb6 {[%emt 0:00:56]} 13. Bb3 {[%emt 0:00:20]} Nd5 {[%emt 0:13:29]} 14. Bxd5 {[%emt 0:18:03]} exd5 {[%emt 0:00:45]} 15. e6 {[%emt 0:06:18]} Bd6 {[%emt 0:00:30]} 16. Nf4 {[%emt 0:00:21]} Bxf4 {[%emt 0:00:11]} 17. exf7+ {[%emt 0:00:06]} Bxf7 {[%emt 0:00:13]} 18. exf4 {[%emt 0:00:04]} O-O {[%emt 0:00:39]} 19. f5 {[%emt 0:02:42]} Qd6 {[%emt 0:13:40]} 20. Ne5 {[%emt 0:02:45]} Rae8 {[%emt 0:00:17]} 21. Qg4 {[%emt 0:01:31]} c5 {[%emt 0:32:12]} 22. f6 {[%emt 0:05:52]} g6 {[%emt 0:00:11]} 23. Qf4 {[%emt 0:00:16]} Re6 {[%emt 0:00:14]} 24. Qh6 {[%emt 0:04:33]} Rxf6 {[%emt 0:00:12]} 25. Rxf6 {[%emt 0:00:04]} Qxf6 {[%emt 0:00:07]} 26. Qxf8+ {[%emt 0:00:04]} Kxf8 {[%emt 0:00:08]} 27. Nd7+ {[%emt 0:00:01]} Ke7 {[%emt 0:00:09]} 28. Nxf6 {[%emt 0:00:03]} Kxf6 {[%emt 0:00:07]} 29. Rf1+ {[%emt 0:02:24]} Ke6 {[%emt 0:00:19]} 30. Re1+ {[%emt 0:00:03]} Kd7 {[%emt 0:00:32]} 31. dxc5 {[%emt 0:00:59]} h5 {[%emt 0:00:23]} 32. Kf2 {[%emt 0:00:15]} d4 {[%emt 0:01:12]} 33. Rd1 {[%emt 0:09:52]} Kc6 {[%emt 0:00:30]} 34. Rxd4 {[%emt 0:00:03]} Kxc5 {[%emt 0:00:09]} 35. Ra4 {[%emt 0:00:57]} a6 {[%emt 0:00:24]} 36. a3 {[%emt 0:00:04]} Bc4 {[%emt 0:00:25]} 37. Ke3 {[%emt 0:04:11]} Bf1 {[%emt 0:04:43]} 38. Rf4 {[%emt 0:00:09]} Bxg2 {[%emt 0:00:15]} 39. h4 {[%emt 0:00:07]} Bh3 {[%emt 0:04:32]} 40. Ke4 {[%emt 0:00:11]} Bd7 {[%emt 0:02:44]} 41. Ke5 {[%emt 0:00:39]} a5 {[%emt 0:04:45]} 42. Rf6 {[%emt 0:05:17]} a4 {[%emt 0:01:05]} 43. Rxg6 {[%emt 0:00:12]} b5 {[%emt 0:03:36]} 44. Rg5 {[%emt 0:01:30]} Be8 {[%emt 0:00:04]} 45. Ke6+ {[%emt 0:01:20]} Kc4 {[%emt 0:00:05]} 46. Rg3 {[%emt 0:00:13]} b4 {[%emt 0:00:27]} 47. Ke7 {[%emt 0:01:17]} Bc6 {[%emt 0:00:18]} 48. Kd6 {[%emt 0:00:15]} bxa3 {[%emt 0:02:12]} 49. bxa3 {[%emt 0:02:04]} Be4 {[%emt 0:00:08]} 50. Re3 {[%emt 0:00:45]} Bd3 {[%emt 0:01:38]} 51. Kc6 {[%emt 0:00:07]} Bf5 {[%emt 0:00:41]} 52. Kb6 {[%emt 0:00:46]} Bc2 {[%emt 0:00:09]} 53. Ka5 {[%emt 0:00:22]} Kd4 {[%emt 0:00:33]} 54. Re2 {[%emt 0:00:12]} Bb3 {[%emt 0:00:26]} 55. Kb4 {[%emt 0:00:04]} Kd5 {[%emt 0:01:27]} 56. Rb2 {[%emt 0:00:23]} Kc6 {[%emt 0:02:15]} 57. Rxb3 {[%emt 0:00:11]} axb3 {[%emt 0:00:06]} 58. Kxb3 {[%emt 0:00:01]} Kb5 {[%emt 0:00:08]} 59. a4+ {[%emt 0:00:04]} Ka5 {[%emt 0:00:05]} 60. Ka3 {[%emt 0:00:02]} Ka6 {[%emt 0:00:21]} 61. Kb4 {[%emt 0:00:04]} Kb6 {[%emt 0:00:20]} 62. a5+ {[%emt 0:00:03]} Ka6 {[%emt 0:00:06]} 63. Ka4 {[%emt 0:00:04]} Ka7 {[%emt 0:00:05]} 64. Kb5 {[%emt 0:00:03]} Kb7 {[%emt 0:00:05]} 65. Kc5 {[%emt 0:00:03]} Ka6 {[%emt 0:00:05]} 66. Kd5 {[%emt 0:00:02]} Kxa5 {[%emt 0:00:39]} 67. Ke5 {[%emt 0:00:02]} Kb5 {[%emt 0:00:10]} 68. Kf5 {[%emt 0:00:04]} Kc5 {[%emt 0:00:05]} 69. Kg5 {[%emt 0:00:03]} Kd6 {[%emt 0:00:04]} 70. Kxh5 {[%emt 0:00:07]} Ke7 {[%emt 0:00:09]} 71. Kg6 {[%emt 0:00:04]} Kf8 {[%emt 0:00:04]} 72. Kh7 {[%emt 0:00:05]} Kf7 {[%emt 0:00:04]} 73. h5 {[%emt 0:00:05]} Kf8 {[%emt 0:00:03]} 74. Kh8 {[%emt 0:00:26]} Kf7 {[%emt 0:00:06]} 75. h6 {[%emt 0:00:03]} Kf8 {[%emt 0:00:06]} 76. Kh7 {[%emt 0:00:04]} Kf7 {[%emt 0:00:03]} 1/2-1/2

[Event "IV Estrellas 2022"]
[Site "La Palma"]
[Date "2022.08.09"]
[Round "5.9"]
[White "Herrera Reyes, Jose Antonio"]
[Black "Perez Bolanos, David"]
[Result "1-0"]
[ECO "C44"]
[WhiteElo "2345"]
[BlackElo "2041"]
[Annotator "RC"]
[PlyCount "63"]
[EventDate "2022.08.06"]
[EventType "swiss"]
[EventCountry "ESP"]
[SourceTitle "playchess.com"]
[Source "ChessBase"]
[SourceQuality "1"]
[TimeControl "5400+30"]

1. e4 {[%emt 1:31:00]} e5 {[%emt 0:00:36]} 2. Nf3 {[%emt 0:00:00]} Nc6 {[%emt 0:00:09]} 3. c4 {[%emt 0:00:00]} Bc5 {[%emt 0:01:37]} 4. a3 {[%emt 0:00:00]} a5 {[%emt 0:01:15]} 5. Nxe5 {[%emt 0:00:00]} Qh4 {[%emt 0:04:56]} 6. Nd3 {[%emt 0:00:00]} Qxe4+ {[%emt 0:01:00]} 7. Qe2 {[%emt 0:00:00]} Qxe2+ {[%emt 0:01:08]} 8. Bxe2 {[%emt 0:00:00]} Ba7 {[%emt 0:04:36]} 9. Nf4 {[%emt 0:00:00]} Nf6 {[%emt 0:05:37]} 10. d3 {[%emt 0:00:00]} O-O {[%emt 0:03:56]} 11. Be3 {[%emt 0:00:00]} Nd4 {[%emt 0:03:12]} 12. Bd1 {[%emt 0:00:00]} Re8 {[%emt 0:13:07]} 13. Kd2 {[%emt 0:00:00]} Ne6 {[%emt 0:04:20]} 14. Nxe6 {[%emt 0:00:00]} Bxe3+ {[%emt 0:00:23]} 15. fxe3 {[%emt 0:00:00]} fxe6 {[%emt 0:02:00]} 16. Nc3 {[%emt 0:00:00]} d6 {[%emt 0:03:17]} 17. g4 {[%emt 0:00:00]} Bd7 {[%emt 0:04:34]} 18. g5 {[%emt 0:00:00]} Bc6 {[%emt 0:00:44]} 19. gxf6 {[%emt 0:00:00]} Bxh1 {[%emt 0:00:57]} 20. e4 {[%emt 0:00:00]} Bg2 {[%emt 0:17:10]} 21. Bg4 {[%emt 0:00:00]} g6 {[%emt 0:01:52]} 22. Rg1 {[%emt 0:00:00]} h5 {[%emt 0:00:13]} 23. Bd1 {[%emt 0:00:00]} Bh3 {[%emt 0:02:07]} 24. Bxh5 {[%emt 0:00:00]} Kf7 {[%emt 0:05:12]} 25. Bxg6+ {[%emt 0:00:00]} Kxf6 {[%emt 0:00:20]} 26. Bxe8 {[%emt 0:00:00]} Rxe8 {[%emt 0:00:09]} 27. Nb5 {[%emt 0:00:00]} Re7 {[%emt 0:01:26]} 28. Rg3 {[%emt 0:00:00]} Rh7 {[%emt 0:00:32]} 29. Nxc7 {[%emt 0:00:00]} Rxc7 {[%emt 0:00:05]} 30. Rxh3 {[%emt 0:00:00]} Rg7 {[%emt 0:00:09]} 31. Kc3 {[%emt 0:00:00]} e5 {[%emt 0:00:23]} 32. Rh8 {[%emt 0:00:00]} 1-0

[Event "IV Estrellas 2022"]
[Site "La Palma"]
[Date "2022.08.09"]
[Round "5.10"]
[White "Acosta Sosa, Juan Manuel"]
[Black "Diaz Perez, Michel Alejandro"]
[Result "1-0"]
[ECO "A03"]
[WhiteElo "2310"]
[BlackElo "2433"]
[Annotator "RC"]
[PlyCount "81"]
[EventDate "2022.08.06"]
[EventType "swiss"]
[EventCountry "ESP"]
[SourceTitle "playchess.com"]
[Source "ChessBase"]
[SourceQuality "1"]
[TimeControl "5400+30"]

1. f4 {[%emt 0:05:14]} d5 {[%emt 0:01:59]} 2. Nf3 {[%emt 0:00:21]} Nf6 {[%emt 0:00:15]} 3. b3 {[%emt 0:00:06]} c5 {[%emt 0:02:59]} 4. Bb2 {[%emt 0:00:05]} e6 {[%emt 0:01:25]} 5. e3 {[%emt 0:00:07]} Bd6 {[%emt 0:02:16]} 6. Be2 {[%emt 0:00:14]} Nc6 {[%emt 0:01:03]} 7. O-O {[%emt 0:00:15]} O-O {[%emt 0:01:08]} 8. Ne5 {[%emt 0:01:46]} Nd7 {[%emt 0:07:47]} 9. Nxc6 {[%emt 0:05:00]} bxc6 {[%emt 0:01:52]} 10. c4 {[%emt 0:00:03]} e5 {[%emt 0:12:41]} 11. Nc3 {[%emt 0:06:03]} Nf6 {[%emt 0:13:18]} 12. cxd5 {[%emt 0:08:01]} cxd5 {[%emt 0:00:19]} 13. Nb5 {[%emt 0:00:06]} e4 {[%emt 0:02:31]} 14. Nxd6 {[%emt 0:07:18]} Qxd6 {[%emt 0:00:06]} 15. Rc1 {[%emt 0:00:57]} Nd7 {[%emt 0:07:21]} 16. Bb5 {[%emt 0:02:44]} Qb6 {[%emt 0:03:45]} 17. Ba4 {[%emt 0:09:28]} Rd8 {[%emt 0:05:30]} 18. Qh5 {[%emt 0:03:36]} Nf6 {[%emt 0:11:18]} 19. Qh4 {[%emt 0:09:15]} Ba6 {[%emt 0:03:58]} 20. Rf2 {[%emt 0:00:07]} Rac8 {[%emt 0:08:36]} 21. g4 {[%emt 0:05:22]} d4 {[%emt 0:02:34]} 22. g5 {[%emt 0:00:09]} Nd5 {[%emt 0:01:14]} 23. f5 {[%emt 0:02:03]} dxe3 {[%emt 0:00:40]} 24. dxe3 {[%emt 0:00:12]} Nxe3 {[%emt 0:00:43]} 25. f6 {[%emt 0:07:12]} Nd1 {[%emt 0:01:33]} 26. g6 {[%emt 0:02:09]} fxg6 {[%emt 0:04:18]} 27. f7+ {[%emt 0:00:09]} Kf8 {[%emt 0:01:24]} 28. Qxh7 {[%emt 0:08:05]} Nxb2 {[%emt 0:00:34]} 29. Qg8+ {[%emt 0:01:29]} Ke7 {[%emt 0:00:04]} 30. Qxg7 {[%emt 0:01:07]} Rf8 {[%emt 0:00:32]} 31. Qe5+ {[%emt 0:00:49]} Qe6 {[%emt 0:00:33]} 32. Qg5+ {[%emt 0:00:11]} Kd6 {[%emt 0:01:04]} 33. Rf6 {[%emt 0:00:19]} Rxf7 {[%emt 0:00:33]} 34. Rxe6+ {[%emt 0:06:07]} Kxe6 {[%emt 0:00:04]} 35. Rxc5 {[%emt 0:00:07]} Rxc5 {[%emt 0:00:21]} 36. Qxc5 {[%emt 0:00:08]} Bb7 {[%emt 0:01:12]} 37. Bc6 {[%emt 0:04:30]} Rf5 {[%emt 0:00:41]} 38. Qc1 {[%emt 0:00:02]} Bxc6 {[%emt 0:00:46]} 39. Qxc6+ {[%emt 0:00:08]} Kf7 {[%emt 0:00:24]} 40. Qxe4 {[%emt 0:01:05]} Kg8 {[%emt 0:00:37]} 41. Qe2 {[%emt 0:00:20]} 1-0

[Event "IV Estrellas 2022"]
[Site "La Palma"]
[Date "2022.08.09"]
[Round "5.11"]
[White "Segura Marsa, Andres"]
[Black "Hernandez Leon, Sergio"]
[Result "0-1"]
[ECO "B06"]
[WhiteElo "1849"]
[BlackElo "2094"]
[Annotator "RC"]
[PlyCount "32"]
[EventDate "2022.08.06"]
[EventType "swiss"]
[EventCountry "ESP"]
[SourceTitle "playchess.com"]
[Source "ChessBase"]
[SourceQuality "1"]
[TimeControl "5400+30"]

1. e4 {[%emt 0:00:04]} g6 {[%emt 0:00:03]} 2. d4 {[%emt 0:00:45]} Bg7 {[%emt 0:00:07]} 3. Nf3 {[%emt 0:00:36]} c6 {[%emt 0:00:20]} 4. h3 {[%emt 0:01:38]} d5 {[%emt 0:01:28]} 5. exd5 {[%emt 0:01:01]} cxd5 {[%emt 0:00:07]} 6. Be2 {[%emt 0:00:14]} Nc6 {[%emt 0:00:23]} 7. c3 {[%emt 0:00:31]} Nf6 {[%emt 0:02:21]} 8. O-O {[%emt 0:01:00]} O-O {[%emt 0:00:11]} 9. Nbd2 {[%emt 0:01:48]} b6 {[%emt 0:02:43]} 10. Re1 {[%emt 0:03:05]} Bb7 {[%emt 0:01:36]} 11. Nb3 {[%emt 0:09:26]} e6 {[%emt 0:03:36]} 12. a4 {[%emt 0:04:01]} Ne4 {[%emt 0:07:44]} 13. Bd3 {[%emt 0:04:50]} f5 {[%emt 0:01:25]} 14. Ne5 {[%emt 0:11:02]} Nxe5 {[%emt 0:02:44]} 15. dxe5 {[%emt 0:00:03]} Qh4 {[%emt 0:00:16]} 16. f4 {[%emt 0:10:14]} Nf2 {[%emt 0:02:21]} 0-1

[Event "IV Estrellas 2022"]
[Site "La Palma"]
[Date "2022.08.09"]
[Round "5.12"]
[White "Sosa Suarez, Carla Cristina"]
[Black "Ramirez Maillo, Cristian"]
[Result "0-1"]
[ECO "B36"]
[WhiteElo "2125"]
[BlackElo "1896"]
[Annotator "RC"]
[PlyCount "101"]
[EventDate "2022.08.06"]
[EventType "swiss"]
[EventCountry "ESP"]
[SourceTitle "playchess.com"]
[Source "ChessBase"]
[SourceQuality "1"]
[TimeControl "5400+30"]

1. e4 {[%emt 0:00:03]} c5 {[%emt 0:00:07]} 2. Nf3 {[%emt 0:00:04]} g6 {[%emt 0:00:12]} 3. d4 {[%emt 0:00:04]} cxd4 {[%emt 0:00:17]} 4. Nxd4 {[%emt 0:00:05]} Nc6 {[%emt 0:00:19]} 5. c4 {[%emt 0:00:08]} Nf6 {[%emt 0:00:27]} 6. Nc3 {[%emt 0:00:39]} d6 {[%emt 0:00:25]} 7. Be2 {[%emt 0:00:57]} Nxd4 {[%emt 0:00:51]} 8. Qxd4 {[%emt 0:00:04]} Bg7 {[%emt 0:00:12]} 9. Be3 {[%emt 0:00:30]} O-O {[%emt 0:00:13]} 10. Qd3 {[%emt 0:00:21]} a5 {[%emt 0:01:37]} 11. O-O {[%emt 0:04:32]} a4 {[%emt 0:01:14]} 12. Bd4 {[%emt 0:05:28]} Qa5 {[%emt 0:06:37]} 13. Rab1 {[%emt 0:03:50]} Be6 {[%emt 1:24:29]} 14. f4 {[%emt 0:04:03]} Bg4 {[%emt 0:00:00]} 15. Bxg4 {[%emt 0:17:26]} Nxg4 {[%emt 0:00:00]} 16. Nd5 {[%emt 0:03:21]} Bxd4+ {[%emt 0:00:00]} 17. Qxd4 {[%emt 0:01:00]} e5 {[%emt 0:00:00]} 18. Qb6 {[%emt 0:07:34]} Qxb6+ {[%emt 0:00:00]} 19. Nxb6 {[%emt 0:00:05]} Ra6 {[%emt 0:00:00]} 20. Nd5 {[%emt 0:05:15]} exf4 {[%emt 0:00:00]} 21. Rxf4 {[%emt 0:13:54]} Ne5 {[%emt 0:00:00]} 22. Rbf1 {[%emt 0:03:19]} Kg7 {[%emt 0:00:00]} 23. Nc7 {[%emt 0:02:31]} Rb6 {[%emt 0:00:00]} 24. Ne6+ {[%emt 0:01:14]} fxe6 {[%emt 0:00:00]} 25. Rxf8 {[%emt 0:00:04]} Rxb2 {[%emt 0:00:00]} 26. R8f2 {[%emt 0:00:59]} a3 {[%emt 0:00:00]} 27. Rxb2 {[%emt 0:06:14]} axb2 {[%emt 0:00:00]} 28. Rb1 {[%emt 0:01:06]} Nxc4 {[%emt 0:00:00]} 29. Kf2 {[%emt 0:00:17]} Kf6 {[%emt 0:00:00]} 30. Ke2 {[%emt 0:00:39]} Ke5 {[%emt 0:00:00]} 31. Kd3 {[%emt 0:00:11]} d5 {[%emt 0:00:00]} 32. exd5 {[%emt 0:00:12]} Kxd5 {[%emt 0:00:00]} 33. Kc3 {[%emt 0:01:41]} e5 {[%emt 0:00:00]} 34. Rd1+ {[%emt 0:02:15]} Kc5 {[%emt 0:00:00]} 35. Re1 {[%emt 0:00:16]} e4 {[%emt 0:00:00]} 36. Kc2 {[%emt 0:02:38]} e3 {[%emt 0:00:00]} 37. a3 {[%emt 0:03:39]} b5 {[%emt 0:00:00]} 38. Kc3 {[%emt 0:00:29]} Kd5 {[%emt 0:00:00]} 39. Rd1+ {[%emt 0:03:08]} Ke4 {[%emt 0:00:00]} 40. Rd4+ {[%emt 0:00:35]} Ke5 {[%emt 0:00:00]} 41. Rd1 {[%emt 0:00:05]} Nd2 {[%emt 0:00:00]} 42. Kxb2 {[%emt 0:01:45]} Ke4 {[%emt 0:00:00]} 43. Kc3 {[%emt 0:04:44]} e2 {[%emt 0:00:00]} 44. Rc1 {[%emt 0:02:51]} Ke3 {[%emt 0:00:00]} 45. Kb4 {[%emt 0:01:07]} Nc4 {[%emt 0:00:00]} 46. Kxb5 {[%emt 0:00:34]} Nxa3+ {[%emt 0:00:00]} 47. Kb4 {[%emt 0:00:10]} Kd2 {[%emt 0:00:00]} 48. Rh1 {[%emt 0:00:46]} Nc2+ {[%emt 0:00:00]} 49. Kc4 {[%emt 0:00:27]} e1=Q {[%emt 0:00:00]} 50. Rxe1 {[%emt 0:00:07]} Nxe1 {[%emt 0:00:00]} 51. Kd4 {[%emt 0:00:36]} 0-1

[Event "IV Estrellas 2022"]
[Site "La Palma"]
[Date "2022.08.09"]
[Round "5.13"]
[White "Perez Bolanos, Joel"]
[Black "Rodriguez Bittar, Karim Javier"]
[Result "1/2-1/2"]
[ECO "A07"]
[WhiteElo "2036"]
[BlackElo "1881"]
[Annotator "RC"]
[PlyCount "151"]
[EventDate "2022.08.06"]
[EventType "swiss"]
[EventCountry "ESP"]
[SourceTitle "playchess.com"]
[Source "ChessBase"]
[SourceQuality "1"]
[TimeControl "5400+30"]

1. Nf3 {[%emt 0:00:41]} d5 {[%emt 0:00:35]} 2. g3 {[%emt 0:00:11]} c6 {[%emt 0:00:54]} 3. Bg2 {[%emt 0:00:05]} Nf6 {[%emt 0:02:03]} 4. O-O {[%emt 0:00:25]} Bg4 {[%emt 0:00:23]} 5. h3 {[%emt 0:00:05]} Bh5 {[%emt 0:00:02]} 6. c4 {[%emt 0:00:14]} e6 {[%emt 0:00:08]} 7. Qb3 {[%emt 0:01:29]} Qb6 {[%emt 0:00:30]} 8. d3 {[%emt 0:00:08]} Qxb3 {[%emt 0:03:07]} 9. axb3 {[%emt 0:00:16]} Nbd7 {[%emt 0:03:19]} 10. Be3 {[%emt 0:06:46]} a6 {[%emt 0:03:13]} 11. Bd2 {[%emt 0:01:37]} Bd6 {[%emt 0:05:55]} 12. Bc3 {[%emt 0:02:17]} O-O {[%emt 0:02:07]} 13. g4 {[%emt 0:07:01]} Bg6 {[%emt 0:00:09]} 14. Nh4 {[%emt 0:00:30]} Rfe8 {[%emt 0:05:31]} 15. Nd2 {[%emt 0:04:11]} Rac8 {[%emt 0:13:21]} 16. b4 {[%emt 0:02:11]} dxc4 {[%emt 0:02:59]} 17. dxc4 {[%emt 0:03:39]} Be5 {[%emt 0:14:42]} 18. Bxe5 {[%emt 0:03:04]} Nxe5 {[%emt 0:00:02]} 19. f4 {[%emt 0:00:15]} Ned7 {[%emt 0:02:08]} 20. e4 {[%emt 0:00:35]} h6 {[%emt 0:04:45]} 21. e5 {[%emt 0:01:52]} Nh7 {[%emt 0:00:15]} 22. Nxg6 {[%emt 0:00:05]} fxg6 {[%emt 0:00:12]} 23. Ne4 {[%emt 0:00:12]} Red8 {[%emt 0:02:33]} 24. Rad1 {[%emt 0:05:27]} g5 {[%emt 0:01:32]} 25. Rd6 {[%emt 0:03:52]} gxf4 {[%emt 0:05:28]} 26. Rfd1 {[%emt 0:01:39]} Nhf8 {[%emt 0:01:27]} 27. Nc5 {[%emt 0:03:16]} Rc7 {[%emt 0:03:23]} 28. Nxe6 {[%emt 0:02:14]} Nxe6 {[%emt 0:00:07]} 29. Rxe6 {[%emt 0:00:05]} Rf8 {[%emt 0:03:24]} 30. Be4 {[%emt 0:08:07]} Nb6 {[%emt 0:03:52]} 31. b3 {[%emt 0:00:25]} Rd7 {[%emt 0:04:14]} 32. Rdd6 {[%emt 0:01:54]} Rfd8 {[%emt 0:04:57]} 33. c5 {[%emt 0:01:25]} Nd5 {[%emt 0:02:43]} 34. Bf5 {[%emt 0:02:52]} Rxd6 {[%emt 0:06:15]} 35. Rxd6 {[%emt 0:01:58]} Rxd6 {[%emt 0:00:46]} 36. cxd6 {[%emt 0:01:17]} Kf7 {[%emt 0:00:57]} 37. e6+ {[%emt 0:00:51]} Kf6 {[%emt 0:00:30]} 38. e7 {[%emt 0:00:42]} Nxe7 {[%emt 0:00:29]} 39. dxe7 {[%emt 0:00:05]} Kxe7 {[%emt 0:00:03]} 40. Bc8 {[%emt 0:00:04]} b6 {[%emt 0:00:56]} 41. Bxa6 {[%emt 0:00:24]} Kd6 {[%emt 0:00:23]} 42. Kf2 {[%emt 0:01:15]} Ke5 {[%emt 0:00:19]} 43. Bb7 {[%emt 0:00:21]} c5 {[%emt 0:00:08]} 44. bxc5 {[%emt 0:00:10]} bxc5 {[%emt 0:00:01]} 45. Kf3 {[%emt 0:00:28]} g5 {[%emt 0:01:00]} 46. Ke2 {[%emt 0:01:45]} Kd4 {[%emt 0:00:37]} 47. Kd2 {[%emt 0:01:53]} c4 {[%emt 0:00:55]} 48. b4 {[%emt 0:00:25]} c3+ {[%emt 0:00:27]} 49. Kc2 {[%emt 0:00:03]} Kc4 {[%emt 0:00:31]} 50. b5 {[%emt 0:00:04]} Kxb5 {[%emt 0:00:15]} 51. Kxc3 {[%emt 0:00:01]} Kc5 {[%emt 0:00:10]} 52. Bf3 {[%emt 0:00:30]} Kd6 {[%emt 0:00:24]} 53. Kd4 {[%emt 0:00:01]} Ke6 {[%emt 0:01:05]} 54. Ke4 {[%emt 0:00:01]} h5 {[%emt 0:00:18]} 55. gxh5 {[%emt 0:00:08]} Kf6 {[%emt 0:00:08]} 56. Kd5 {[%emt 0:01:58]} Kg7 {[%emt 0:00:08]} 57. Ke6 {[%emt 0:00:04]} Kh8 {[%emt 0:00:05]} 58. Kf6 {[%emt 0:00:06]} Kh7 {[%emt 0:00:39]} 59. Be2 {[%emt 0:00:17]} f3 {[%emt 0:00:21]} 60. Bxf3 {[%emt 0:00:22]} Kh8 {[%emt 0:00:38]} 61. Be4 {[%emt 0:00:50]} Kg8 {[%emt 0:00:32]} 62. Bf5 {[%emt 0:05:25]} Kh8 {[%emt 0:01:06]} 63. Ke7 {[%emt 0:00:59]} Kg7 {[%emt 0:00:20]} 64. Ke6 {[%emt 0:00:05]} Kh8 {[%emt 0:00:12]} 65. Kf6 {[%emt 0:00:09]} Kg8 {[%emt 0:00:05]} 66. Kg6 {[%emt 0:00:37]} Kh8 {[%emt 0:00:19]} 67. h6 {[%emt 0:00:32]} Kg8 {[%emt 0:00:13]} 68. Kh5 {[%emt 0:00:04]} Kh8 {[%emt 0:00:06]} 69. h7 {[%emt 0:00:08]} Kg7 {[%emt 0:00:13]} 70. Be4 {[%emt 0:00:08]} Kh8 {[%emt 0:00:23]} 71. Bf5 {[%emt 0:01:00]} Kg7 {[%emt 0:00:07]} 72. Bg6 {[%emt 0:00:01]} Kh8 {[%emt 0:00:15]} 73. Kh6 {[%emt 0:00:25]} g4 {[%emt 0:00:13]} 74. h4 {[%emt 0:00:19]} g3 {[%emt 0:00:07]} 75. Be4 {[%emt 0:00:02]} g2 {[%emt 0:00:09]} 76. Bxg2 {[%emt 0:01:23]} 1/2-1/2

[Event "IV Estrellas 2022"]
[Site "La Palma"]
[Date "2022.08.09"]
[Round "5.14"]
[White "Perez Aleman, Pedro Tomas"]
[Black "Baeza Escudero, Javier"]
[Result "0-1"]
[ECO "D00"]
[WhiteElo "2038"]
[BlackElo "1861"]
[Annotator "RC"]
[PlyCount "112"]
[EventDate "2022.08.06"]
[EventType "swiss"]
[EventCountry "ESP"]
[SourceTitle "playchess.com"]
[Source "ChessBase"]
[SourceQuality "1"]
[TimeControl "5400+30"]

1. d4 {[%emt 0:00:05]} Nf6 {[%emt 0:00:10]} 2. Nc3 {[%emt 0:00:11]} d5 {[%emt 0:00:17]} 3. Bf4 {[%emt 0:00:06]} g6 {[%emt 0:00:56]} 4. e3 {[%emt 0:01:04]} Bg7 {[%emt 0:00:08]} 5. h4 {[%emt 0:00:42]} h5 {[%emt 0:02:03]} 6. Nf3 {[%emt 0:00:50]} Bg4 {[%emt 0:01:16]} 7. Be2 {[%emt 0:00:55]} c6 {[%emt 0:01:48]} 8. Ne5 {[%emt 0:01:05]} Bxe2 {[%emt 0:00:42]} 9. Qxe2 {[%emt 0:00:24]} Nbd7 {[%emt 0:05:02]} 10. O-O-O {[%emt 0:02:06]} a5 {[%emt 0:04:40]} 11. g4 {[%emt 0:07:59]} a4 {[%emt 0:04:43]} 12. a3 {[%emt 0:10:54]} Nb6 {[%emt 0:07:36]} 13. gxh5 {[%emt 0:06:00]} Nxh5 {[%emt 0:07:15]} 14. Rdg1 {[%emt 0:08:09]} Nxf4 {[%emt 0:07:09]} 15. exf4 {[%emt 0:03:58]} Bxe5 {[%emt 0:09:25]} 16. Qxe5 {[%emt 0:08:01]} Rf8 {[%emt 0:04:20]} 17. h5 {[%emt 0:06:31]} Nc4 {[%emt 0:01:15]} 18. Qg7 {[%emt 0:00:01]} Qb6 {[%emt 0:06:04]} 19. Nd1 {[%emt 0:00:05]} gxh5 {[%emt 0:02:33]} 20. Rxh5 {[%emt 0:04:51]} O-O-O {[%emt 0:00:28]} 21. Qg4+ {[%emt 0:07:16]} Kb8 {[%emt 0:01:41]} 22. f5 {[%emt 0:00:24]} Rg8 {[%emt 0:04:55]} 23. Qf4+ {[%emt 0:00:12]} Ka7 {[%emt 0:01:32]} 24. Rhg5 {[%emt 0:01:19]} Rxg5 {[%emt 0:02:38]} 25. Qxg5 {[%emt 0:02:08]} f6 {[%emt 0:04:26]} 26. Qg7 {[%emt 0:00:29]} Rd7 {[%emt 0:00:17]} 27. Rg4 {[%emt 0:05:25]} Qa5 {[%emt 0:00:42]} 28. c3 {[%emt 0:04:33]} Qb5 {[%emt 0:02:00]} 29. Qf8 {[%emt 0:01:35]} Nd6 {[%emt 0:03:51]} 30. Rg8 {[%emt 0:03:09]} Kb6 {[%emt 0:02:53]} 31. Qa8 {[%emt 0:02:01]} Qa6 {[%emt 0:03:43]} 32. Ne3 {[%emt 0:01:54]} Qxa8 {[%emt 0:01:53]} 33. Rxa8 {[%emt 0:00:02]} Kb5 {[%emt 0:08:39]} 34. f3 {[%emt 0:04:18]} Rc7 {[%emt 0:00:00]} 35. Rh8 {[%emt 0:03:43]} Nf7 {[%emt 0:00:00]} 36. Rh5 {[%emt 0:02:16]} b6 {[%emt 0:00:00]} 37. f4 {[%emt 0:00:24]} Rd7 {[%emt 0:00:00]} 38. Rh7 {[%emt 0:00:21]} Nd6 {[%emt 0:00:00]} 39. Kc2 {[%emt 0:04:34]} Nc4 {[%emt 0:00:00]} 40. Ng4 {[%emt 0:00:30]} Rc7 {[%emt 0:00:00]} 41. Nxf6 {[%emt 0:00:00]} Ne3+ {[%emt 0:00:00]} 42. Kd3 {[%emt 0:00:00]} Nxf5 {[%emt 0:04:30]} 43. Ng4 {[%emt 0:00:00]} c5 {[%emt 0:00:00]} 44. Ne5 {[%emt 0:00:00]} cxd4 {[%emt 0:00:00]} 45. cxd4 {[%emt 0:00:03]} Rc1 {[%emt 0:00:00]} 46. Rf7 {[%emt 0:00:30]} e6 {[%emt 0:00:00]} 47. Nf3 {[%emt 0:01:52]} Rd1+ {[%emt 0:00:00]} 48. Ke2 {[%emt 0:00:59]} Rb1 {[%emt 0:00:00]} 49. Rf6 {[%emt 0:00:29]} Rxb2+ {[%emt 0:00:00]} 50. Ke1 {[%emt 0:00:33]} Rb3 {[%emt 0:00:00]} 51. Ng5 {[%emt 0:00:18]} Nxd4 {[%emt 0:00:00]} 52. Kd2 {[%emt 0:00:24]} Kc4 {[%emt 0:01:37]} 53. Nxe6 {[%emt 0:00:22]} Rd3+ {[%emt 0:00:16]} 54. Kc1 {[%emt 0:00:15]} Nb3+ {[%emt 0:00:46]} 55. Kb2 {[%emt 0:01:10]} Rd2+ {[%emt 0:00:13]} 56. Kb1 {[%emt 0:00:17]} Kc3 {[%emt 0:00:09]} 0-1